Cogmind - Beta 10.2 @@@ ROGUE MODE // 2021.03.10 @ 13:58:27 Player: Exp. Geonium Core Result: Destroyed by G-34 Mercenary with Small Laser Performance ------------- Evolutions (1) 500 Regions Visited (3) 600 Robots Destroyed (1) 5 Value Destroyed (2) 2 Prototype IDs (1) 20 Alien Tech Used (0) 0 Bonus (200) 200 TOTAL SCORE: 1327 Bonus ------- Pacifist 200 Cogmind --------- Core Integrity 0/400 Matter 129/300 Energy 98/100 System Corruption 4% Temperature Cool (6) Movement Core (50) Location -9/Mines Parts ------- > --- POWER (1) -------- (None) > --- PROPULSION (2) --- (None) > --- UTILITY (4) ------ Transport Network Coupler Targeting Computer > --- WEAPON (2) ------- (None) > --- INVENTORY (4) ---- Heavy Ion Engine Disposable Heat Sink Weight Redist. System Propulsion Shielding Peak State ------------ > --- POWER ------------ Heavy Ion Engine > --- PROPULSION ------- Compact Wheel Compact Wheel > --- UTILITY ---------- Medium Storage Unit Targeting Computer Targeting Computer Targeting Computer > --- WEAPON ----------- Hammer > --- INVENTORY -------- Light Ion Engine Heavy Ion Engine Disposable Heat Sink Weight Redist. System ECM Suite ECM Suite [Rating: 11] Favorites ----------- Power Heavy Ion Engine Engine Heavy Ion Engine Propulsion Compact Wheel Wheel Compact Wheel Utility Targeting Computer Device ECM Suite Storage Medium Storage Unit Processor Targeting Computer Weapon Hammer Impact Weapon Hammer Build | -11 -10 -9 -9 ------- Run | Scr Mat Mat Min Slots Evolved 2 | . . 2 . Power . | . . . . Propulsion . | . . . . Utility 2 | . . 2 . Weapon . | . . . . Parts Attached 13 | 3 3 5 2 Power 4 | 1 1 1 1 Engine 4 | 1 1 1 1 Core . | . . . . Reactor . | . . . . Propulsion 2 | 2 . . . Treads . | . . . . Leg . | . . . . Wheel 2 | 2 . . . Hover . | . . . . Flight . | . . . . Utility 6 | . 2 3 1 Device 1 | . . 1 . Storage 1 | . . 1 . Processor 4 | . 2 1 1 Hackware . | . . . . Protection . | . . . . Artifact . | . . . . Weapon 1 | . . 1 . Energy Gun . | . . . . Energy Cannon . | . . . . Ballistic Gun . | . . . . Ballistic Cannon . | . . . . Launcher . | . . . . Special Weapon . | . . . . Impact Weapon 1 | . . 1 . Slashing Weapon . | . . . . Piercing Weapon . | . . . . Special Melee Weapon . | . . . . Unidentified Prototypes 1 | . . 1 . Parts Lost 7 | . . . 7 Power 2 | . . . 2 Propulsion 2 | . . . 2 Utility 2 | . . . 2 Weapon 1 | . . . 1 Highest Loss Streak 5 | . . . 5 Average Slot Usage (%) 71 | . 60 81 66 Engine 10 | . 14 9 8 Wheel 18 | . 28 22 12 Device 2 | . . 6 . Storage 4 | . . 2 8 Processor 29 | . 17 33 29 Impact Weapon 5 | . . 7 6 Naked Turns . | . . . . Heaviest Build 18 | 3 3 18 18 Greatest Support 32 | 32 3 32 32 Greatest Overweight (x) 2 | . . . 2 Average Overweight (x) . | . . . . Largest Inventory Capacity 8 | 4 4 8 8 Average Capacity 5 | 4 4 4 7 Most Carried 8 | . 4 8 8 Average Carried 4 | . 1 4 7 Final Capacity 8 | 4 4 8 4 Final Carried 8 | . 4 8 4 Class Distribution -------------------- 100% | Mutant Dominant Class ---------------- Mutant | -10/Materials Mutant | -9/Materials Mutant | -9/Mines Resources | -11 -10 -9 -9 ----------- Run | Scr Mat Mat Min Matter Collected 73 | . . 56 17 Remotely . | . . . . Salvage Created 56 | . . 56 . Parts 3 | . . 3 . Haulers Intercepted 1 | . . 1 . Recyclers Shooed . | . . . . Parts Field Recycled . | . . . . Retrieved Matter . | . . . . Parts Self-Destructed . | . . . . Prevented . | . . . . Kills | -11 -10 -9 -9 ------- Run | Scr Mat Mat Min Combat Hostiles Destroyed . | . . . . Classes Destroyed 1 | . . 1 . Hauler 1 | . . 1 . Best Kill Streak 1 | . . 1 . Combat Bots Only . | . . . . Max Kills in Single Turn 1 | . . 1 . Gunslinging . | . . . . Exploded . | . . . . Melee . | . . . . Uniques/NPCs Destroyed . | . . . . Combat | -11 -10 -9 -9 -------- Run | Scr Mat Mat Min Damage Taken 776 | . . 21 755 Core 405 | . . 11 394 Absorbed by Shields . | . . . . Core Remaining (%) 100 | 100 100 . . Volleys Fired . | . . . . Largest . | . . . . Hottest . | . . . . Shots Fired . | . . . . Gun . | . . . . Cannon . | . . . . Launcher . | . . . . Special . | . . . . Kinetic . | . . . . Thermal . | . . . . Explosive . | . . . . Electromagnetic . | . . . . Robot Hit Streak . | . . . . Robot Miss Streak . | . . . . Penetration Max . | . . . . Secondary Targets . | . . . . Shots Hit Robots 7 | . . 1 6 Core Hits 6 | . . 1 5 Critical Hits . | . . . . Critical Kills . | . . . . Critical Parts Destroyed . | . . . . Melee Attacks 13 | . . 2 11 Impact 13 | . . 2 11 Slashing . | . . . . Piercing . | . . . . Sneak Attacks 1 | . . 1 . Combat Hostiles . | . . . . Follow-up Attacks . | . . . . Damage Inflicted 202 | . . 68 134 Guns . | . . . . Cannons . | . . . . Explosions . | . . . . Melee 166 | . . 68 98 Ramming 36 | . . . 36 Kinetic . | . . . . Thermal . | . . . . Explosive . | . . . . Electromagnetic . | . . . . Impact 166 | . . 68 98 Slashing . | . . . . Piercing . | . . . . Highest Corruption 4 | . . . 4 Average Corruption 2 | . . . 2 Corruption Purged . | . . . . Overload Shots . | . . . . Overflow Damage 12 | . . . 12 Projectiles . | . . . . Explosions . | . . . . Melee 12 | . . . 12 Knockbacks 1 | . . . 1 Impact 1 | . . . 1 Kinetic . | . . . . Secondary . | . . . . Self-Inflicted Damage 14 | . . . 14 Shots . | . . . . Rammed 15 | . . . 15 Targets Rammed 15 | . . . 15 Kicked . | . . . . Crushed . | . . . . Highest Temperature . | . . . . Average Temperature . | . . . . Received Heat Transfer 69 | . . 12 57 Siege Activations . | . . . . Robots Corrupted . | . . . . Combat Hostiles . | . . . . Parts Fried . | . . . . Impact Corruptions 1 | . . . 1 Robots Melted . | . . . . Combat Hostiles . | . . . . Parts Melted . | . . . . Heat Transferred . | . . . . Parts Sabotaged . | . . . . Parts Stolen . | . . . . Parts Stripped . | . . . . Power Chain Reactions . | . . . . Missiles Intercepted . | . . . . Alert | -11 -10 -9 -9 ------- Run | Scr Mat Mat Min Peak Influence 89 | . . 52 89 Initial 19 | . . . 19 Average 23 | . . 14 47 Maximum Alert Level . | . . . . Low Security (%) 100 | 100 100 100 100 Level 1 . | . . . . Level 2 . | . . . . Level 3 . | . . . . Level 4 . | . . . . Level 5 . | . . . . High Security . | . . . . Max Security . | . . . . Squads Dispatched 1 | . . 1 . Investigation . | . . . . Extermination . | . . . . Reinforcement 1 | . . 1 . Assault . | . . . . Garrison . | . . . . Intercept . | . . . . Construction Impeded . | . . . . Haulers Reinforced . | . . . . Stealth | -11 -10 -9 -9 --------- Run | Scr Mat Mat Min Distress Signals . | . . . . Communications Jammed . | . . . . Distress Signals . | . . . . Times Spotted 25 | . 1 7 17 Peak Tracking Total 9 | . 1 5 9 Tactical Retreats 4 | . . . 4 Traps | -11 -10 -9 -9 ------- Run | Scr Mat Mat Min Traps Triggered . | . . . . Indirectly . | . . . . Trap Hack Attempts . | . . . . Triggered . | . . . . Disarmed . | . . . . Reprogrammed . | . . . . Reused . | . . . . Traps Extracted . | . . . . Installed . | . . . . Triggered . | . . . . Machines | -11 -10 -9 -9 ---------- Run | Scr Mat Mat Min Machines Disabled . | . . . . Max in Single Turn . | . . . . Machines Sabotaged . | . . . . Garrisons Compromised . | . . . . Overloaded Fab Kills . | . . . . Fab Network Shutdowns . | . . . . Hacking | -11 -10 -9 -9 --------- Run | Scr Mat Mat Min Machines Accessed . | . . . . Terminals . | . . . . Fabricators . | . . . . Repair Stations . | . . . . Recycling Units . | . . . . Scanalyzers . | . . . . Garrison Access . | . . . . Total Hacks . | . . . . Successful . | . . . . Failed . | . . . . Catastrophic . | . . . . Database Lockouts . | . . . . Manual . | . . . . Terminals . | . . . . Fabricators . | . . . . Repair Stations . | . . . . Recycling Units . | . . . . Scanalyzers . | . . . . Garrison Access . | . . . . Terminal Hacks . | . . . . Fabricator Hacks . | . . . . Repair Station Hacks . | . . . . Recycling Unit Hacks . | . . . . Scanalyzer . | . . . . Garrison Access Hacks . | . . . . Unauthorized Hacks . | . . . . Terminals . | . . . . Fabricators . | . . . . Repair Stations . | . . . . Recycling Units . | . . . . Scanalyzers . | . . . . Garrison Access . | . . . . Data Cores Recovered . | . . . . Used . | . . . . Hacking Detections . | . . . . Full Trace Events . | . . . . Feedback Events . | . . . . Feedback Blocked . | . . . . Robot Schematics Acquired . | . . . . Robots Built . | . . . . Matter . | . . . . Time . | . . . . Total Robot Build Rating . | . . . . Part Schematics Acquired . | . . . . Parts Built . | . . . . Matter . | . . . . Time . | . . . . Total Part Build Rating . | . . . . Parts Repaired . | . . . . Time . | . . . . Parts Recycled . | . . . . Recycled Matter . | . . . . Retrieved Matter . | . . . . Retrieved Components . | . . . . Parts Scanalyzed . | . . . . Part Schematics Acquired . | . . . . Parts Damaged . | . . . . Bothacking | -11 -10 -9 -9 ------------ Run | Scr Mat Mat Min Used RIF Installer . | . . . . Robots Hacked . | . . . . Non-combat . | . . . . Combat . | . . . . Robot Hacks Applied . | . . . . Relay Couplers Released . | . . . . Robots Rewired . | . . . . Allies Hacked . | . . . . Hacks Repelled . | . . . . Allies | -11 -10 -9 -9 -------- Run | Scr Mat Mat Min Total Allies . | . . . . Largest Group . | . . . . Highest-Rated Group . | . . . . Highest-Rated Ally . | . . . . Total Orders . | . . . . Ally Attacks . | . . . . Total Damage . | . . . . Kills . | . . . . Allies Corrupted . | . . . . Allies Melted . | . . . . Intel | -11 -10 -9 -9 ------- Run | Scr Mat Mat Min Robot Analysis Total . | . . . . Derelict Logs Recovered . | . . . . Drone Launches . | . . . . Drone Recoveries . | . . . . Exploration | -11 -10 -9 -9 ------------- Run | Scr Mat Mat Min Turns Passed 264 | 23 38 103 100 Spaces Moved 251 | 30 59 109 53 Core 155 | 22 59 47 27 Treads . | . . . . Legs . | . . . . Wheels 96 | 8 . 62 26 Hover . | . . . . Flight . | . . . . Fastest Speed 50 | 50 50 50 50 Average Speed 71 | 63 50 78 83 Slowest Speed 150 | 100 50 100 150 Overloaded Moves . | . . . . Propulsion Burnouts . | . . . . Robots Hopped . | . . . . Cave-ins Triggered . | . . . . Exploration Rate (%) 12 | 3 20 15 12 Regions Visited 3 Branch Regions 1 Pre-discovered Areas . | . . . . Known Exits Taken . | . . . . Unknown Exits Taken 3 | 1 1 1 . Scrap Searched 1 | . . . 1 Spaces Dug . | . . . . Terrain Destroyed . | . . . . Melee . | . . . . Projectile . | . . . . AOE . | . . . . Terrain Rammed . | . . . . Walls Destroyed . | . . . . Machines Disabled . | . . . . Actions | -11 -10 -9 -9 --------- Run | Scr Mat Mat Min Total 308 | 32 66 123 87 Wait 3 | . . . 3 Move 248 | 29 58 108 53 Hop . | . . . . Pick Up 10 | . 4 6 . Fast Attach 7 | 3 2 2 . Attach 6 | . 1 3 2 Detach 2 | . 1 1 . Swap . | . . . . Drop 4 | . . 1 3 Fire . | . . . . Melee 13 | . . 2 11 Ram 15 | . . . 15 Kick . | . . . . Crush . | . . . . Escape Stasis . | . . . . Rewire . | . . . . Trap . | . . . . Miscellaneous . | . . . . Route ------- -11/Scrapyard -10/Materials -9/Materials -9/Mines History --------- Turn | Location | Event 18 | -11/Scrapyard | Discovered new exit (range 14) 24 | -11/Scrapyard | Entered Materials 51 | -10/Materials | Discovered new exit (range 16) 62 | -10/Materials | Entered another Materials area 62 | -9/Materials | Evolved 2 slots: Utility x2 158 | -9/Materials | Discovered new exit (range 8) 165 | -9/Materials | Entered Mines 228 | -9/Mines | Core integrity fell below 50% 257 | -9/Mines | Lost 5 parts (1p2n1u1w) 262 | -9/Mines | Core integrity fell below 20% 265 | -9/Mines | Destroyed by G-34 Mercenary with Small Laser Last Messages --------------- 00253_ Found Field Recycling Unit. 00253_ Found Hrd. Light Armor Plating. 00253_ Found 17 Matter. 00254_ Slammed into G-34 Mercenary. 00257_ Slammed into S-10 Pest. 00257_ Targeting Computer permanently disabled. 00257_ Destabilizing: Short circuit. 00258_ Slammed into G-34 Mercenary. 00259_ Acquired 17 matter. 00259_ Slammed into S-10 Pest. 00259_ S-10 Pest misfires. 00260_ Slammed into S-10 Pest. 00261_ Destabilizing: Core damaged (-20). 00261_ Lgt. Ion Engine destroyed. 00262_ Slammed into G-34 Mercenary. 00262_ G-34 Mercenary knocked back. 00262_ Targeting Computer destroyed. 00263_ Slammed into G-34 Mercenary. 00263_ Destabilizing: System corrupted (+2). 00265_ S-10 Pest misfires. Map ----- +----------------------------------------------------+ | | | | | | | | | ???????????????????????????????????? | | ???????????????????????????????????? | | ???????????????????????????????????? | | ???????????????????????????????????? | | ???????????????????????????????????? | | ???????????????????????############? | | ???????????????????????# #? | | ???????????????????????# #? | | ???????????????????????# #? | | ???????????????????????# #? | | ???????????????????????##### ######? | | ???????????????????????????#!#?????? | | ?????? ????????????????????# #?????? | | ????? ????????????????????#g#?????? | | ????? ???????????????????# ##????? | | ?????? #?????????????????##s ##???? | | ??????? #???????????????## ls #???? | | ??????? ???????????????# g #???? | | ???????? ?####?????????## gs ##???? | | ????????? ## ##????????# ##????? | | ?????????# #????????# g ##?????? | | ?????????# #????????#@ #??????? | | ????????## #????????# ##?????? | | ????????# #?######## ##????? | | ????????# #?# !!! #????? | | ?????????# #??# ####### #????? | | ?????????#### #### #?????## ##????? | | ????????????# #??????####?????? | | ????????????# ######???????????????? | | ??????????? ????????????????????? | | ?????????? """????????????????????? | | ????????? """ ???????????????????? | | ????????### """ ???????????????????? | | ??????????# #??????????????????? | | ??????????# #??????????????????? | | ??????????# #??????????????????? | | ??????????#? ?#??????????????????? | | ???????????????????????????????????? | | ???????????????????????????????????? | | ???????????????????????????????????? | | ???????????????????????????????????? | | ???????????????????????????????????? | | ???????????????????????????????????? | | ???????????????????????????????????? | | ???????????????????????????????????? | | ???????????????????????????????????? | +----------------------------------------------------+ Best States ------------- Heat Dissipation 28 Energy Generation 14 Energy Capacity 280 Matter Stores 104 Matter Capacity 300 Sight Range 16 Terrain Scan Density 10 ECM Strength 1 Evasion (%) 50 Targeting Accuracy 15 Item Schematics ----------------- None Robot Schematics ------------------ None Fabricated ------------ Nothing Alien Tech Used ----------------- None Achievements -------------- None Challenges ------------ None Game ------ Seed ThrusterGyrokineticPod Manual? 0 Play Time 00:07:04 Cumulative 50.1 hours Start 2021.03.10 @ 13:51:01 End 2021.03.10 @ 13:58:27 Sessions 1 Manual Loads 0 Difficulty Rogue Special Mode None Game No. 80 Rogue 80 Adventurer 0 Explorer 0 Win Type - Total 1 Types 1/0/0/0/0/0/0/0/0 Lore% 36 Gallery% 48 Achievement% 41 Wizard Run 0 Options --------- ASCII 0 Keyboard 0 Movement Numpad Keybinds 0 Fullscreen 1 Font 18/Terminus Map View 76x50 Tactical HUD 1 Map Filters NONE Filters NONE Steam 1 RUN: dd638be1-3240-4152-9e15-a99630533ab3